[Event "December 19 Late 2023"]
[Site "https://www.chess.com"]
[Date "2023.12.19"]
[Round "9"]
[White "Dourerassou, Jonathan"]
[Black "Makarian, Rudik"]
[Result "0-1"]
[Board "11"]
[TimeControl "180+1"]
[WhiteFideId "628050"]
[BlackFideId "44105681"]
[WhiteElo "2499"]
[BlackElo "2540"]
[WhiteTeam "FRA"]
[BlackTeam "FID"]
[WhiteClock "0:00:01"]
[BlackClock "0:00:08"]

1. d4 {[%clk 0:03:00]}  g6 {[%clk 0:03:00]} 2. e4 {[%clk 0:03:00]}  Bg7 {[%clk 0:03:01]} 3. Nc3 {[%clk 0:03:00]}  d6 {[%clk 0:03:01]} 4. Be3 {[%clk 0:03:00]}  a6 {[%clk 0:03:01]} 5. Qd2 {[%clk 0:03:00]}  e6 {[%clk 0:02:58]} 6. Nf3 {[%clk 0:02:57]}  Ne7 {[%clk 0:02:56]} 7. Bh6 {[%clk 0:02:56]}  Bxh6 {[%clk 0:02:43]} 8. Qxh6 {[%clk 0:02:57]}  Ng8 {[%clk 0:02:43]} 9. Qe3 {[%clk 0:02:51]}  b5 {[%clk 0:02:41]} 10. e5 {[%clk 0:02:46]}  Bb7 {[%clk 0:02:40]} 11. Ne4 {[%clk 0:02:43]}  Nd7 {[%clk 0:02:21]} 12. O-O-O {[%clk 0:02:25]}  Bxe4 {[%clk 0:02:13]} 13. Qxe4 {[%clk 0:02:26]}  d5 {[%clk 0:02:14]} 14. Qf4 {[%clk 0:02:26]}  h6 {[%clk 0:02:05]} 15. h4 {[%clk 0:02:26]}  Qe7 {[%clk 0:01:50]} 16. Rh3 {[%clk 0:02:23]}  Nb6 {[%clk 0:01:48]} 17. Nd2 {[%clk 0:02:19]}  h5 {[%clk 0:01:44]} 18. Ra3 {[%clk 0:02:01]}  Nc4 {[%clk 0:01:35]} 19. Bxc4 {[%clk 0:01:33]}  bxc4 {[%clk 0:01:36]} 20. Nf3 {[%clk 0:01:32]}  Nh6 {[%clk 0:01:33]} 21. Ng5 {[%clk 0:01:32]}  Nf5 {[%clk 0:01:33]} 22. f3 {[%clk 0:01:32]}  Rb8 {[%clk 0:01:16]} 23. Rxa6 {[%clk 0:01:20]}  Qb4 {[%clk 0:01:07]} 24. b3 {[%clk 0:01:20]}  Qc3 {[%clk 0:01:05]} 25. Kb1 {[%clk 0:01:01]}  cxb3 {[%clk 0:01:00]} 26. cxb3 {[%clk 0:01:01]}  Rxb3+ {[%clk 0:00:58]} 27. axb3 {[%clk 0:01:02]}  Qxb3+ {[%clk 0:00:59]} 28. Kc1 {[%clk 0:01:01]}  Qc3+ {[%clk 0:00:55]} 29. Kb1 {[%clk 0:01:01]}  Qb3+ {[%clk 0:00:42]} 30. Kc1 {[%clk 0:01:01]}  Qc4+ {[%clk 0:00:33]} 31. Kd2 {[%clk 0:00:58]}  Qxa6 {[%clk 0:00:33]} 32. Ke1 {[%clk 0:00:52]}  Qa2 {[%clk 0:00:29]} 33. Rd2 {[%clk 0:00:51]}  Qa1+ {[%clk 0:00:27]} 34. Kf2 {[%clk 0:00:51]}  O-O {[%clk 0:00:27]} 35. g4 {[%clk 0:00:49]}  Ng7 {[%clk 0:00:22]} 36. Rc2 {[%clk 0:00:44]}  Qa5 {[%clk 0:00:18]} 37. Kg2 {[%clk 0:00:40]}  Qb6 {[%clk 0:00:16]} 38. Qd2 {[%clk 0:00:32]}  Qa7 {[%clk 0:00:13]} 39. Rc5 {[%clk 0:00:30]}  Rb8 {[%clk 0:00:11]} 40. Qf4 {[%clk 0:00:26]}  Rf8 {[%clk 0:00:12]} 41. Qe3 {[%clk 0:00:23]}  Qa2+ {[%clk 0:00:11]} 42. Kg3 {[%clk 0:00:23]}  Qa7 {[%clk 0:00:11]} 43. Qc3 {[%clk 0:00:22]}  Qa4 {[%clk 0:00:08]} 44. Rxc7 {[%clk 0:00:21]}  Qd1 {[%clk 0:00:08]} 45. Rc8 {[%clk 0:00:14]}  Qg1+ {[%clk 0:00:07]} 46. Kh3 {[%clk 0:00:13]}  Qh1+ {[%clk 0:00:08]} 47. Kg3 {[%clk 0:00:13]}  Qg1+ {[%clk 0:00:08]} 48. Kf4 {[%clk 0:00:10]}  Ne8 {[%clk 0:00:04]} 49. Qc6 {[%clk 0:00:07]}  Qh2+ {[%clk 0:00:04]} 50. Ke3 {[%clk 0:00:07]}  Qxh4 {[%clk 0:00:05]} 51. Nxe6 {[%clk 0:00:05]}  Qe1+ {[%clk 0:00:05]} 52. Kf4 {[%clk 0:00:05]}  Qd2+ {[%clk 0:00:04]} 53. Kg3 {[%clk 0:00:05]}  Qe1+ {[%clk 0:00:04]} 54. Kf4 {[%clk 0:00:06]}  fxe6+ {[%clk 0:00:05]} 55. Kg5 {[%clk 0:00:04]}  Qe3+ {[%clk 0:00:05]} 56. Kxg6 {[%clk 0:00:03]}  Qd3+ {[%clk 0:00:04]} 57. Kg5 {[%clk 0:00:02]}  Qe3+ {[%clk 0:00:04]} 58. Kg6 {[%clk 0:00:02]}  Qd3+ {[%clk 0:00:04]} 59. Kg5 {[%clk 0:00:03]}  Qxf3 {[%clk 0:00:05]} 60. Qxe6+ {[%clk 0:00:02]}  Qf7 {[%clk 0:00:03]} 61. Qxf7+ {[%clk 0:00:02]}  Kxf7 {[%clk 0:00:04]} 62. Rc6 {[%clk 0:00:02]}  hxg4 {[%clk 0:00:03]} 63. Kxg4 {[%clk 0:00:02]}  Ke7 {[%clk 0:00:03]} 64. Ra6 {[%clk 0:00:02]}  Kd7 {[%clk 0:00:03]} 65. Ra7+ {[%clk 0:00:03]}  Kc6 {[%clk 0:00:04]} 66. Ra6+ {[%clk 0:00:03]}  Kb5 {[%clk 0:00:04]} 67. e6 {[%clk 0:00:04]}  Nc7 {[%clk 0:00:04]} 68. Rd6 {[%clk 0:00:04]}  Re8 {[%clk 0:00:04]} 69. e7 {[%clk 0:00:04]}  Rxe7 {[%clk 0:00:05]} 70. Kf5 {[%clk 0:00:05]}  Kc4 {[%clk 0:00:05]} 71. Kf6 {[%clk 0:00:05]}  Re1 {[%clk 0:00:06]} 72. Rc6+ {[%clk 0:00:05]}  Kxd4 {[%clk 0:00:06]} 73. Rxc7 {[%clk 0:00:06]}  Kd3 {[%clk 0:00:06]} 74. Kf5 {[%clk 0:00:06]}  d4 {[%clk 0:00:07]} 75. Ra7 {[%clk 0:00:06]}  Kc4 {[%clk 0:00:07]} 76. Rc7+ {[%clk 0:00:06]}  Kd3 {[%clk 0:00:07]} 77. Rh7 {[%clk 0:00:06]}  Kc3 {[%clk 0:00:07]} 78. Rc7+ {[%clk 0:00:06]}  Kd2 {[%clk 0:00:08]} 79. Ra7 {[%clk 0:00:06]}  d3 {[%clk 0:00:08]} 80. Ra2+ {[%clk 0:00:07]}  Kc3 {[%clk 0:00:08]} 81. Ra3+ {[%clk 0:00:07]}  Kc2 {[%clk 0:00:08]} 82. Ra2+ {[%clk 0:00:08]}  Kb3 {[%clk 0:00:09]} 83. Rh2 {[%clk 0:00:05]}  Re2 {[%clk 0:00:08]} 84. Rh3 {[%clk 0:00:04]}  Kc2 {[%clk 0:00:08]} 85. Rh8 {[%clk 0:00:03]}  d2 {[%clk 0:00:08]} 86. Rc8+ {[%clk 0:00:03]}  Kd1 {[%clk 0:00:08]} 87. Kf4 {[%clk 0:00:03]}  Ke1 {[%clk 0:00:08]} 88. Rd8 {[%clk 0:00:01]}  d1=Q {[%clk 0:00:08]} 0-1

[Event "December 19 Late 2023"]
[Site "https://www.chess.com"]
[Date "2023.12.19"]
[Round "9"]
[White "Grigoriants, Sergey"]
[Black "Rustemov, Alexander"]
[Result "1-0"]
[Board "14"]
[TimeControl "180+1"]
[WhiteFideId "4130804"]
[BlackFideId "4119002"]
[WhiteElo "2532"]
[BlackElo "2799"]
[WhiteTeam "HUN"]
[BlackTeam "RUS"]
[WhiteClock "0:00:08"]
[BlackClock "0:00:00"]

1. d4 {[%clk 0:02:52]}  d5 {[%clk 0:02:59]} 2. c4 {[%clk 0:02:51]}  c6 {[%clk 0:02:58]} 3. Nc3 {[%clk 0:02:49]}  Nf6 {[%clk 0:02:58]} 4. e3 {[%clk 0:02:49]}  a6 {[%clk 0:02:57]} 5. Nf3 {[%clk 0:02:42]}  b5 {[%clk 0:02:56]} 6. b3 {[%clk 0:02:36]}  Bg4 {[%clk 0:02:55]} 7. Bd2 {[%clk 0:02:35]}  e6 {[%clk 0:02:54]} 8. h3 {[%clk 0:02:31]}  Bxf3 {[%clk 0:02:44]} 9. Qxf3 {[%clk 0:02:31]}  Bd6 {[%clk 0:02:45]} 10. Bd3 {[%clk 0:02:27]}  O-O {[%clk 0:02:44]} 11. Qe2 {[%clk 0:02:20]}  Nbd7 {[%clk 0:02:43]} 12. O-O {[%clk 0:02:15]}  Qe7 {[%clk 0:02:39]} 13. c5 {[%clk 0:02:12]}  Bc7 {[%clk 0:02:39]} 14. f4 {[%clk 0:02:13]}  a5 {[%clk 0:02:26]} 15. a3 {[%clk 0:02:04]}  Rfb8 {[%clk 0:02:15]} 16. Nd1 {[%clk 0:02:02]}  Ne4 {[%clk 0:02:13]} 17. Bxe4 {[%clk 0:01:48]}  dxe4 {[%clk 0:02:13]} 18. g4 {[%clk 0:01:48]}  f5 {[%clk 0:02:11]} 19. Be1 {[%clk 0:01:35]}  a4 {[%clk 0:02:00]} 20. b4 {[%clk 0:01:33]}  Qf7 {[%clk 0:01:57]} 21. Bh4 {[%clk 0:01:31]}  Bd8 {[%clk 0:01:57]} 22. Bxd8 {[%clk 0:01:28]}  Rxd8 {[%clk 0:01:58]} 23. Kh2 {[%clk 0:01:19]}  Nf6 {[%clk 0:01:56]} 24. Nc3 {[%clk 0:01:15]}  g6 {[%clk 0:01:51]} 25. Rg1 {[%clk 0:01:14]}  Kf8 {[%clk 0:01:48]} 26. Qf2 {[%clk 0:01:11]}  Ke7 {[%clk 0:01:48]} 27. Qh4 {[%clk 0:01:11]}  Kd7 {[%clk 0:01:48]} 28. gxf5 {[%clk 0:00:47]}  exf5 {[%clk 0:01:47]} 29. d5 {[%clk 0:00:47]}  Nxd5 {[%clk 0:01:43]} 30. Nxd5 {[%clk 0:00:47]}  cxd5 {[%clk 0:01:40]} 31. Rad1 {[%clk 0:00:47]}  Kc6 {[%clk 0:01:33]} 32. Rd4 {[%clk 0:00:47]}  Rd7 {[%clk 0:01:30]} 33. Rgd1 {[%clk 0:00:46]}  Rad8 {[%clk 0:01:26]} 34. R1d2 {[%clk 0:00:43]}  Qe7 {[%clk 0:01:25]} 35. Qxe7 {[%clk 0:00:31]}  Rxe7 {[%clk 0:01:25]} 36. h4 {[%clk 0:00:31]}  h6 {[%clk 0:01:24]} 37. Rg2 {[%clk 0:00:31]}  Rg7 {[%clk 0:01:23]} 38. Rg3 {[%clk 0:00:27]}  g5 {[%clk 0:01:20]} 39. Rd1 {[%clk 0:00:11]}  Rdg8 {[%clk 0:01:11]} 40. Rdg1 {[%clk 0:00:10]}  d4 {[%clk 0:01:07]} 41. exd4 {[%clk 0:00:09]}  Kd5 {[%clk 0:00:43]} 42. hxg5 {[%clk 0:00:09]}  hxg5 {[%clk 0:00:43]} 43. Rxg5 {[%clk 0:00:09]}  Rh8+ {[%clk 0:00:31]} 44. Kg3 {[%clk 0:00:09]}  Rgh7 {[%clk 0:00:23]} 45. Rxf5+ {[%clk 0:00:08]}  Kxd4 {[%clk 0:00:23]} 46. Rg5 {[%clk 0:00:07]}  Rh3+ {[%clk 0:00:21]} 47. Kg4 {[%clk 0:00:07]}  e3 {[%clk 0:00:19]} 48. Rd1+ {[%clk 0:00:06]}  Kc3 {[%clk 0:00:18]} 49. Re5 {[%clk 0:00:06]}  R8h4+ {[%clk 0:00:11]} 50. Kf5 {[%clk 0:00:06]}  Rf3 {[%clk 0:00:12]} 51. Re1 {[%clk 0:00:05]}  Rhxf4+ {[%clk 0:00:12]} 52. Ke6 {[%clk 0:00:05]}  Rf6+ {[%clk 0:00:08]} 53. Kd5 {[%clk 0:00:05]}  Kd2 {[%clk 0:00:08]} 54. Ra1 {[%clk 0:00:05]}  R6f5 {[%clk 0:00:06]} 55. c6 {[%clk 0:00:05]}  Rxe5+ {[%clk 0:00:05]} 56. Kxe5 {[%clk 0:00:06]}  e2 {[%clk 0:00:06]} 57. c7 {[%clk 0:00:06]}  Rf8 {[%clk 0:00:06]} 58. Kd6 {[%clk 0:00:05]}  e1=Q {[%clk 0:00:06]} 59. Rxe1 {[%clk 0:00:05]}  Kxe1 {[%clk 0:00:07]} 60. Kd7 {[%clk 0:00:06]}  Kd2 {[%clk 0:00:07]} 61. Kc6 {[%clk 0:00:05]}  Kc3 {[%clk 0:00:06]} 62. Kxb5 {[%clk 0:00:06]}  Kb3 {[%clk 0:00:06]} 63. Kc6 {[%clk 0:00:06]}  Kxa3 {[%clk 0:00:06]} 64. b5 {[%clk 0:00:07]}  Kb4 {[%clk 0:00:05]} 65. b6 {[%clk 0:00:08]}  Rf6+ {[%clk 0:00:03]} 66. Kd5 {[%clk 0:00:07]}  Rxb6 {[%clk 0:00:02]} 67. c8=Q {[%clk 0:00:08]}  Rb5+ {[%clk 0:00:02]} 68. Kd4 {[%clk 0:00:07]}  a3 {[%clk 0:00:02]} 69. Qc3+ {[%clk 0:00:06]}  Ka4 {[%clk 0:00:03]} 70. Qc2+ {[%clk 0:00:06]}  Kb4 {[%clk 0:00:03]} 71. Qa2 {[%clk 0:00:06]}  Ka4 {[%clk 0:00:03]} 72. Kc4 {[%clk 0:00:05]}  Rb2 {[%clk 0:00:03]} 73. Qa1 {[%clk 0:00:05]}  Rb4+ {[%clk 0:00:02]} 74. Kc3 {[%clk 0:00:05]}  Rb3+ {[%clk 0:00:03]} 75. Kc4 {[%clk 0:00:05]}  Rb2 {[%clk 0:00:03]} 76. Qd1+ {[%clk 0:00:05]}  Ka5 {[%clk 0:00:03]} 77. Qd8+ {[%clk 0:00:05]}  Ka6 {[%clk 0:00:01]} 78. Qa8+ {[%clk 0:00:05]}  Kb6 {[%clk 0:00:02]} 79. Qxa3 {[%clk 0:00:06]}  Rb5 {[%clk 0:00:02]} 80. Qd6+ {[%clk 0:00:05]}  Ka5 {[%clk 0:00:03]} 81. Qd8+ {[%clk 0:00:05]}  Ka6 {[%clk 0:00:02]} 82. Qa8+ {[%clk 0:00:06]}  Kb6 {[%clk 0:00:02]} 83. Qb8+ {[%clk 0:00:06]}  Kc6 {[%clk 0:00:02]} 84. Qxb5+ {[%clk 0:00:07]}  Kd6 {[%clk 0:00:03]} 85. Qd5+ {[%clk 0:00:07]}  Ke7 {[%clk 0:00:00]} 86. Kc5 {[%clk 0:00:08]} 1-0

[Event "December 19 Late 2023"]
[Site "https://www.chess.com"]
[Date "2023.12.19"]
[Round "9"]
[White "Assylov, Miras"]
[Black "Popov, Konstantin"]
[Result "0-1"]
[Board "17"]
[TimeControl "180+1"]
[WhiteFideId "13728873"]
[BlackFideId "34137910"]
[WhiteElo "1991"]
[BlackElo "2340"]
[WhiteTeam "KAZ"]
[BlackTeam "FID"]
[WhiteClock "0:00:00"]
[BlackClock "0:00:18"]

1. b3 {[%clk 0:03:00]}  Nf6 {[%clk 0:02:57]} 2. Bb2 {[%clk 0:03:00]}  g6 {[%clk 0:02:58]} 3. Bxf6 {[%clk 0:02:59]}  exf6 {[%clk 0:02:59]} 4. c4 {[%clk 0:02:58]}  Bg7 {[%clk 0:03:00]} 5. Nc3 {[%clk 0:02:58]}  f5 {[%clk 0:03:00]} 6. Rc1 {[%clk 0:02:57]}  O-O {[%clk 0:02:57]} 7. e3 {[%clk 0:02:53]}  f4 {[%clk 0:02:33]} 8. Nge2 {[%clk 0:02:33]}  fxe3 {[%clk 0:02:32]} 9. dxe3 {[%clk 0:02:34]}  b6 {[%clk 0:02:28]} 10. Nd5 {[%clk 0:01:38]}  Bb7 {[%clk 0:02:19]} 11. Ng3 {[%clk 0:01:38]}  c6 {[%clk 0:02:16]} 12. Nf4 {[%clk 0:01:36]}  d5 {[%clk 0:02:16]} 13. Be2 {[%clk 0:01:14]}  d4 {[%clk 0:02:09]} 14. e4 {[%clk 0:00:23]}  c5 {[%clk 0:01:46]} 15. Nd5 {[%clk 0:00:20]}  Nc6 {[%clk 0:01:45]} 16. O-O {[%clk 0:00:20]}  Nb4 {[%clk 0:01:44]} 17. Qd2 {[%clk 0:00:20]}  h5 {[%clk 0:01:39]} 18. Rfe1 {[%clk 0:00:14]}  h4 {[%clk 0:01:38]} 19. Nf1 {[%clk 0:00:15]}  Re8 {[%clk 0:01:36]} 20. Bf3 {[%clk 0:00:14]}  Nc6 {[%clk 0:01:35]} 21. g3 {[%clk 0:00:13]}  Kh7 {[%clk 0:01:29]} 22. Rcd1 {[%clk 0:00:12]}  Bh6 {[%clk 0:01:27]} 23. Qb2 {[%clk 0:00:12]}  Ne5 {[%clk 0:01:22]} 24. Bg2 {[%clk 0:00:12]}  Bg7 {[%clk 0:01:13]} 25. Qc1 {[%clk 0:00:05]}  Kg8 {[%clk 0:01:07]} 26. Qf4 {[%clk 0:00:05]}  a6 {[%clk 0:01:01]} 27. Qxh4 {[%clk 0:00:04]}  Qxh4 {[%clk 0:01:00]} 28. gxh4 {[%clk 0:00:05]}  b5 {[%clk 0:00:55]} 29. Nc7 {[%clk 0:00:05]}  bxc4 {[%clk 0:00:55]} 30. bxc4 {[%clk 0:00:06]}  Bh6 {[%clk 0:00:50]} 31. Nxa8 {[%clk 0:00:06]}  Bxa8 {[%clk 0:00:47]} 32. Nd2 {[%clk 0:00:06]}  Nd3 {[%clk 0:00:39]} 33. Rf1 {[%clk 0:00:06]}  Nf4 {[%clk 0:00:28]} 34. Bf3 {[%clk 0:00:03]}  d3 {[%clk 0:00:25]} 35. Nb3 {[%clk 0:00:03]}  Bf8 {[%clk 0:00:23]} 36. Nc1 {[%clk 0:00:03]}  Rd8 {[%clk 0:00:23]} 37. Rd2 {[%clk 0:00:03]}  Bh6 {[%clk 0:00:21]} 38. Rdd1 {[%clk 0:00:02]}  Rd4 {[%clk 0:00:18]} 39. Nb3 {[%clk 0:00:02]}  Rxc4 {[%clk 0:00:19]} 40. Rfe1 {[%clk 0:00:02]}  Rc3 {[%clk 0:00:18]} 41. Nc1 {[%clk 0:00:02]}  c4 {[%clk 0:00:18]} 42. Rd2 {[%clk 0:00:01]}  Nh3+ {[%clk 0:00:17]} 43. Kg2 {[%clk 0:00:01]}  Bxd2 {[%clk 0:00:18]} 44. Rd1 {[%clk 0:00:02]}  Bxc1 {[%clk 0:00:18]} 45. Kxh3 {[%clk 0:00:02]}  Bh6 {[%clk 0:00:18]} 46. Kg4 {[%clk 0:00:02]}  Rc2 {[%clk 0:00:18]} 47. e5 {[%clk 0:00:02]}  Bxf3+ {[%clk 0:00:17]} 48. Kxf3 {[%clk 0:00:03]}  Rxa2 {[%clk 0:00:18]} 49. h5 {[%clk 0:00:00]}  gxh5 {[%clk 0:00:18]} 0-1

[Event "December 19 Late 2023"]
[Site "https://www.chess.com"]
[Date "2023.12.19"]
[Round "9"]
[White "Zakhartsov, Vladimir"]
[Black "Ang, Ern Jie Anderson"]
[Result "0-1"]
[Board "20"]
[TimeControl "180+1"]
[WhiteFideId "4145097"]
[BlackFideId "5736200"]
[WhiteElo "2448"]
[BlackElo "1941"]
[WhiteTeam "RUS"]
[BlackTeam "MAS"]
[WhiteClock "0:00:02"]
[BlackClock "0:00:04"]

1. d4 {[%clk 0:02:54]}  d5 {[%clk 0:02:59]} 2. c4 {[%clk 0:02:54]}  c6 {[%clk 0:02:59]} 3. Nf3 {[%clk 0:02:53]}  Nf6 {[%clk 0:02:58]} 4. Nbd2 {[%clk 0:02:54]}  Bf5 {[%clk 0:02:57]} 5. Nh4 {[%clk 0:02:54]}  Bg4 {[%clk 0:02:55]} 6. Qb3 {[%clk 0:02:49]}  Qb6 {[%clk 0:02:52]} 7. Qxb6 {[%clk 0:02:45]}  axb6 {[%clk 0:02:51]} 8. h3 {[%clk 0:02:46]}  Bh5 {[%clk 0:02:47]} 9. g4 {[%clk 0:02:43]}  Bg6 {[%clk 0:02:48]} 10. Nxg6 {[%clk 0:02:44]}  hxg6 {[%clk 0:02:47]} 11. Bg2 {[%clk 0:02:44]}  e6 {[%clk 0:02:47]} 12. e3 {[%clk 0:02:34]}  Nbd7 {[%clk 0:02:45]} 13. Ke2 {[%clk 0:02:31]}  Bb4 {[%clk 0:02:38]} 14. b3 {[%clk 0:02:31]}  Bc3 {[%clk 0:02:33]} 15. Rb1 {[%clk 0:02:30]}  Rxa2 {[%clk 0:02:33]} 16. Kd3 {[%clk 0:02:31]}  Bxd2 {[%clk 0:02:15]} 17. Bxd2 {[%clk 0:02:32]}  O-O {[%clk 0:02:15]} 18. Ra1 {[%clk 0:02:20]}  Rfa8 {[%clk 0:02:15]} 19. Rxa2 {[%clk 0:02:14]}  Rxa2 {[%clk 0:02:14]} 20. Rd1 {[%clk 0:02:13]}  Kf8 {[%clk 0:01:49]} 21. f4 {[%clk 0:02:02]}  c5 {[%clk 0:01:38]} 22. g5 {[%clk 0:01:54]}  dxc4+ {[%clk 0:01:23]} 23. Kxc4 {[%clk 0:01:48]}  Ne8 {[%clk 0:01:21]} 24. dxc5 {[%clk 0:01:31]}  Nxc5 {[%clk 0:01:20]} 25. Bf3 {[%clk 0:01:10]}  Rc2+ {[%clk 0:01:06]} 26. Kb5 {[%clk 0:01:03]}  Nd6+ {[%clk 0:00:16]} 27. Kxb6 {[%clk 0:01:01]}  Nd7+ {[%clk 0:00:16]} 28. Ka5 {[%clk 0:00:57]}  Ke8 {[%clk 0:00:16]} 29. Kb4 {[%clk 0:00:51]}  Nc5 {[%clk 0:00:15]} 30. Ka3 {[%clk 0:00:35]}  Nd3 {[%clk 0:00:09]} 31. Ba5 {[%clk 0:00:23]}  Nb5+ {[%clk 0:00:04]} 32. Ka4 {[%clk 0:00:24]}  Nc3+ {[%clk 0:00:04]} 33. Bxc3 {[%clk 0:00:21]}  Rxc3 {[%clk 0:00:05]} 34. Bxb7 {[%clk 0:00:05]}  Nc5+ {[%clk 0:00:03]} 35. Kb4 {[%clk 0:00:06]}  Rxb3+ {[%clk 0:00:03]} 36. Kxc5 {[%clk 0:00:06]}  Rxb7 {[%clk 0:00:04]} 37. Ra1 {[%clk 0:00:04]}  Ke7 {[%clk 0:00:04]} 38. Kd4 {[%clk 0:00:04]}  f6 {[%clk 0:00:04]} 39. h4 {[%clk 0:00:04]}  Rb4+ {[%clk 0:00:03]} 40. Kd3 {[%clk 0:00:04]}  Rb7 {[%clk 0:00:04]} 41. Ke4 {[%clk 0:00:04]}  Kf7 {[%clk 0:00:04]} 42. Kf3 {[%clk 0:00:04]}  Rc7 {[%clk 0:00:04]} 43. Ra6 {[%clk 0:00:04]}  Rb7 {[%clk 0:00:04]} 44. Rc6 {[%clk 0:00:04]}  Ra7 {[%clk 0:00:05]} 45. Kg4 {[%clk 0:00:04]}  Rb7 {[%clk 0:00:05]} 46. Rc3 {[%clk 0:00:04]}  Ra7 {[%clk 0:00:05]} 47. h5 {[%clk 0:00:04]}  gxh5+ {[%clk 0:00:05]} 48. Kxh5 {[%clk 0:00:05]}  g6+ {[%clk 0:00:05]} 49. Kh6 {[%clk 0:00:04]}  f5 {[%clk 0:00:05]} 50. Rd3 {[%clk 0:00:04]}  Rb7 {[%clk 0:00:04]} 51. Rd4 {[%clk 0:00:04]}  Ra7 {[%clk 0:00:04]} 52. e4 {[%clk 0:00:04]}  fxe4 {[%clk 0:00:03]} 53. Rxe4 {[%clk 0:00:04]}  Ra1 {[%clk 0:00:02]} 54. f5 {[%clk 0:00:01]}  Rh1+ {[%clk 0:00:03]} 55. Rh4 {[%clk 0:00:02]}  Rxh4# {[%clk 0:00:04]} 0-1

[Event "December 19 Late 2023"]
[Site "https://www.chess.com"]
[Date "2023.12.19"]
[Round "9"]
[White "Srinath, Rao S.V."]
[Black "FontVella8"]
[Result "0-1"]
[Board "24"]
[TimeControl "180+1"]
[WhiteFideId "5028876"]
[WhiteElo "2198"]
[BlackElo "2811"]
[WhiteTeam "IND"]
[WhiteClock "0:00:00"]
[BlackClock "0:00:32"]

1. e4 {[%clk 0:03:00]}  c6 {[%clk 0:02:58]} 2. Nc3 {[%clk 0:02:59]}  d5 {[%clk 0:02:58]} 3. Qf3 {[%clk 0:02:59]}  dxe4 {[%clk 0:02:57]} 4. Nxe4 {[%clk 0:02:58]}  Nf6 {[%clk 0:02:57]} 5. Bc4 {[%clk 0:02:54]}  Nbd7 {[%clk 0:02:47]} 6. Ne2 {[%clk 0:02:46]}  Ne5 {[%clk 0:02:41]} 7. Nxf6+ {[%clk 0:02:45]}  exf6 {[%clk 0:02:36]} 8. Qe4 {[%clk 0:02:14]}  Be7 {[%clk 0:02:36]} 9. Bb3 {[%clk 0:02:14]}  O-O {[%clk 0:02:35]} 10. d4 {[%clk 0:02:13]}  Ng4 {[%clk 0:02:23]} 11. O-O {[%clk 0:02:05]}  Re8 {[%clk 0:02:18]} 12. Ng3 {[%clk 0:01:53]}  Bc5 {[%clk 0:02:05]} 13. dxc5 {[%clk 0:01:24]}  Rxe4 {[%clk 0:02:04]} 14. Nxe4 {[%clk 0:01:25]}  Qd4 {[%clk 0:02:02]} 15. Nd6 {[%clk 0:01:18]}  Qxc5 {[%clk 0:01:47]} 16. Nxf7 {[%clk 0:01:17]}  Kf8 {[%clk 0:01:42]} 17. Bf4 {[%clk 0:01:15]}  Ne5 {[%clk 0:01:33]} 18. Nxe5 {[%clk 0:01:09]}  fxe5 {[%clk 0:01:33]} 19. Be3 {[%clk 0:01:10]}  Qe7 {[%clk 0:01:31]} 20. f4 {[%clk 0:01:09]}  Be6 {[%clk 0:01:17]} 21. fxe5+ {[%clk 0:01:09]}  Kg8 {[%clk 0:01:15]} 22. c4 {[%clk 0:00:55]}  a5 {[%clk 0:01:10]} 23. Rf4 {[%clk 0:00:44]}  a4 {[%clk 0:01:03]} 24. Bc2 {[%clk 0:00:45]}  h6 {[%clk 0:00:55]} 25. Raf1 {[%clk 0:00:41]}  b5 {[%clk 0:00:44]} 26. cxb5 {[%clk 0:00:34]}  cxb5 {[%clk 0:00:45]} 27. a3 {[%clk 0:00:34]}  Rc8 {[%clk 0:00:43]} 28. Bb1 {[%clk 0:00:25]}  Bc4 {[%clk 0:00:41]} 29. Re1 {[%clk 0:00:09]}  Qxe5 {[%clk 0:00:40]} 30. Bf5 {[%clk 0:00:07]}  Re8 {[%clk 0:00:38]} 31. Bd2 {[%clk 0:00:05]}  Qc5+ {[%clk 0:00:37]} 32. Rf2 {[%clk 0:00:03]}  Rxe1+ {[%clk 0:00:34]} 33. Bxe1 {[%clk 0:00:04]}  Qe3 {[%clk 0:00:33]} 34. Bc3 {[%clk 0:00:00]}  Qc1+ {[%clk 0:00:32]} 0-1

[Event "December 19 Late 2023"]
[Site "https://www.chess.com"]
[Date "2023.12.19"]
[Round "9"]
[White "Lymar, Vladislav"]
[Black "Poormosavi, Seyed Kian"]
[Result "0-1"]
[Board "26"]
[TimeControl "180+1"]
[WhiteFideId "14162180"]
[BlackFideId "12585807"]
[WhiteElo "2158"]
[BlackElo "2296"]
[WhiteTeam "UKR"]
[BlackTeam "IRI"]
[WhiteClock "0:00:09"]
[BlackClock "0:01:34"]

1. d4 {[%clk 0:03:00]}  Nf6 {[%clk 0:02:57]} 2. Bf4 {[%clk 0:03:01]}  b6 {[%clk 0:02:57]} 3. e3 {[%clk 0:03:01]}  Bb7 {[%clk 0:02:49]} 4. Nf3 {[%clk 0:03:02]}  g6 {[%clk 0:02:49]} 5. h3 {[%clk 0:03:02]}  Bg7 {[%clk 0:02:50]} 6. Be2 {[%clk 0:03:03]}  O-O {[%clk 0:02:51]} 7. O-O {[%clk 0:03:03]}  d6 {[%clk 0:02:51]} 8. a4 {[%clk 0:03:04]}  c5 {[%clk 0:02:51]} 9. c3 {[%clk 0:03:00]}  Nbd7 {[%clk 0:02:50]} 10. Nbd2 {[%clk 0:02:58]}  Qc7 {[%clk 0:02:49]} 11. Bh2 {[%clk 0:02:56]}  a6 {[%clk 0:02:44]} 12. Qb3 {[%clk 0:02:55]}  Bc6 {[%clk 0:02:43]} 13. Bd3 {[%clk 0:02:41]}  Qb7 {[%clk 0:02:37]} 14. Rfe1 {[%clk 0:02:35]}  b5 {[%clk 0:02:37]} 15. axb5 {[%clk 0:02:14]}  axb5 {[%clk 0:02:38]} 16. Rxa8 {[%clk 0:02:12]}  Rxa8 {[%clk 0:02:38]} 17. c4 {[%clk 0:01:56]}  bxc4 {[%clk 0:02:33]} 18. Qxb7 {[%clk 0:01:53]}  Bxb7 {[%clk 0:02:32]} 19. Bxc4 {[%clk 0:01:48]}  Rb8 {[%clk 0:02:29]} 20. dxc5 {[%clk 0:01:43]}  Nxc5 {[%clk 0:02:28]} 21. b4 {[%clk 0:01:42]}  Nce4 {[%clk 0:02:25]} 22. Nb3 {[%clk 0:01:35]}  Bd5 {[%clk 0:02:23]} 23. Bxd5 {[%clk 0:01:23]}  Nxd5 {[%clk 0:02:24]} 24. Nbd4 {[%clk 0:01:12]}  Rxb4 {[%clk 0:02:22]} 25. Rd1 {[%clk 0:01:04]}  Ndc3 {[%clk 0:02:16]} 26. Re1 {[%clk 0:01:01]}  Rb2 {[%clk 0:02:15]} 27. Ra1 {[%clk 0:00:50]}  Bxd4 {[%clk 0:02:13]} 28. Nxd4 {[%clk 0:00:48]}  Rxf2 {[%clk 0:02:13]} 29. Ra7 {[%clk 0:00:42]}  Kf8 {[%clk 0:01:49]} 30. Bf4 {[%clk 0:00:41]}  g5 {[%clk 0:01:49]} 31. Nf5 {[%clk 0:00:36]}  f6 {[%clk 0:01:45]} 32. Bg3 {[%clk 0:00:19]}  Rxf5 {[%clk 0:01:41]} 33. Be1 {[%clk 0:00:16]}  Rd5 {[%clk 0:01:36]} 34. Kf1 {[%clk 0:00:15]}  Rd1 {[%clk 0:01:36]} 35. Ra8+ {[%clk 0:00:13]}  Kf7 {[%clk 0:01:36]} 36. g4 {[%clk 0:00:12]}  Ng3+ {[%clk 0:01:34]} 37. Kf2 {[%clk 0:00:12]}  Nce4+ {[%clk 0:01:34]} 38. Kg2 {[%clk 0:00:09]}  Rxe1 {[%clk 0:01:34]} 0-1